[Event "Titled Tuesday Blitz June 20 Early 2023"]
[White "Subelj, Jan"]
[Black "Lorparizangeneh, Shahin"]
[WhiteFideId "14618583"]
[BlackFideId "12521604"]
[WhiteElo "2499"]
[BlackElo "2526"]
[Result "0-1"]
[Round "5"]
[TimeControl "180+2"]
[Date "2023.06.20"]
[WhiteClock "0:01:25"]
[BlackClock "0:00:46"]
[Board "45"]

1. e4 {[%clk 0:03:00]}  e5 {[%clk 0:02:58]} 2. Nf3 {[%clk 0:03:00]}  Nc6 {[%clk 0:02:57]} 3. Bb5 {[%clk 0:02:59]}  a6 {[%clk 0:02:57]} 4. Ba4 {[%clk 0:02:55]}  d6 {[%clk 0:02:58]} 5. c3 {[%clk 0:02:54]}  f5 {[%clk 0:02:57]} 6. exf5 {[%clk 0:02:54]}  Bxf5 {[%clk 0:02:55]} 7. d4 {[%clk 0:02:54]}  e4 {[%clk 0:02:56]} 8. Nfd2 {[%clk 0:02:50]}  Nf6 {[%clk 0:02:45]} 9. Nf1 {[%clk 0:02:46]}  b5 {[%clk 0:02:40]} 10. Bc2 {[%clk 0:02:43]}  d5 {[%clk 0:02:40]} 11. Ng3 {[%clk 0:02:43]}  Bg4 {[%clk 0:02:36]} 12. f3 {[%clk 0:02:32]}  exf3 {[%clk 0:02:35]} 13. gxf3 {[%clk 0:02:33]}  Bh3 {[%clk 0:02:24]} 14. Kf2 {[%clk 0:02:32]}  Bd6 {[%clk 0:02:21]} 15. Re1+ {[%clk 0:02:31]}  Kf7 {[%clk 0:02:10]} 16. Bg5 {[%clk 0:02:17]}  h6 {[%clk 0:02:03]} 17. Bxf6 {[%clk 0:02:11]}  Qxf6 {[%clk 0:02:04]} 18. Bb3 {[%clk 0:02:12]}  Ne7 {[%clk 0:02:01]} 19. Nd2 {[%clk 0:02:08]}  Bf4 {[%clk 0:01:43]} 20. Nde4 {[%clk 0:02:05]}  Qh4 {[%clk 0:01:41]} 21. Nc5 {[%clk 0:02:02]}  c6 {[%clk 0:01:24]} 22. Re4 {[%clk 0:01:54]}  Bf5 {[%clk 0:01:15]} 23. Rxe7+ {[%clk 0:01:47]}  Kxe7 {[%clk 0:01:09]} 24. Qe1+ {[%clk 0:01:40]}  Kf7 {[%clk 0:01:07]} 25. Kg1 {[%clk 0:01:41]}  Rae8 {[%clk 0:01:00]} 26. Nce4 {[%clk 0:01:30]}  Bxe4 {[%clk 0:00:48]} 27. fxe4 {[%clk 0:01:27]}  Bxg3 {[%clk 0:00:46]} 28. hxg3 {[%clk 0:01:25]}  Qxe4 {[%clk 0:00:46]} 0-1


[Site "https://www.chess.com"]

[Event "Titled Tuesday Blitz June 20 Early 2023"]
[White "Girya, Olga"]
[Black "Mahdavi, Reza"]
[WhiteFideId "4195752"]
[BlackFideId "12595926"]
[WhiteElo "2263"]
[BlackElo "2395"]
[Result "0-1"]
[Round "5"]
[TimeControl "180+2"]
[Date "2023.06.20"]
[WhiteClock "0:00:00"]
[BlackClock "0:00:51"]
[Board "49"]

1. d4 {[%clk 0:03:00]}  Nf6 {[%clk 0:02:57]} 2. Nf3 {[%clk 0:03:00]}  e6 {[%clk 0:02:56]} 3. c4 {[%clk 0:03:00]}  Bb4+ {[%clk 0:02:36]} 4. Bd2 {[%clk 0:03:00]}  Bxd2+ {[%clk 0:02:33]} 5. Qxd2 {[%clk 0:02:57]}  d5 {[%clk 0:02:31]} 6. e3 {[%clk 0:02:56]}  O-O {[%clk 0:02:29]} 7. Nc3 {[%clk 0:02:56]}  Qe7 {[%clk 0:02:30]} 8. Qc2 {[%clk 0:02:39]}  dxc4 {[%clk 0:02:28]} 9. Bxc4 {[%clk 0:02:38]}  c5 {[%clk 0:02:29]} 10. dxc5 {[%clk 0:02:29]}  Qxc5 {[%clk 0:02:27]} 11. Bd3 {[%clk 0:02:29]}  Nc6 {[%clk 0:02:25]} 12. a3 {[%clk 0:02:29]}  e5 {[%clk 0:02:19]} 13. O-O {[%clk 0:02:21]}  Bg4 {[%clk 0:02:20]} 14. Ng5 {[%clk 0:02:19]}  h6 {[%clk 0:02:17]} 15. Nh7 {[%clk 0:02:14]}  Nxh7 {[%clk 0:02:14]} 16. Bxh7+ {[%clk 0:02:15]}  Kh8 {[%clk 0:02:15]} 17. Be4 {[%clk 0:02:03]}  Rfd8 {[%clk 0:02:11]} 18. Rac1 {[%clk 0:01:54]}  Rd7 {[%clk 0:02:10]} 19. b4 {[%clk 0:01:37]}  Qe7 {[%clk 0:01:53]} 20. h3 {[%clk 0:01:27]}  Be6 {[%clk 0:01:53]} 21. Bxc6 {[%clk 0:01:26]}  bxc6 {[%clk 0:01:53]} 22. Na4 {[%clk 0:01:25]}  Qg5 {[%clk 0:01:49]} 23. Nc5 {[%clk 0:01:06]}  Re7 {[%clk 0:01:26]} 24. f4 {[%clk 0:00:54]}  exf4 {[%clk 0:01:22]} 25. exf4 {[%clk 0:00:55]}  Qg3 {[%clk 0:01:21]} 26. Rf3 {[%clk 0:00:54]}  Qh4 {[%clk 0:01:20]} 27. Qf2 {[%clk 0:00:17]}  Qxf2+ {[%clk 0:01:10]} 28. Rxf2 {[%clk 0:00:16]}  Bd5 {[%clk 0:01:11]} 29. Rd2 {[%clk 0:00:11]}  Rae8 {[%clk 0:01:11]} 30. b5 {[%clk 0:00:10]}  Re2 {[%clk 0:01:08]} 31. Rcc2 {[%clk 0:00:09]}  Rxd2 {[%clk 0:01:00]} 32. Rxd2 {[%clk 0:00:09]}  Re3 {[%clk 0:01:01]} 33. a4 {[%clk 0:00:06]}  Rc3 {[%clk 0:01:00]} 34. Nd7 {[%clk 0:00:06]}  Be6 {[%clk 0:00:57]} 35. Ne5 {[%clk 0:00:06]}  cxb5 {[%clk 0:00:57]} 36. axb5 {[%clk 0:00:06]}  Rb3 {[%clk 0:00:55]} 37. Rd8+ {[%clk 0:00:07]}  Kh7 {[%clk 0:00:55]} 38. Ra8 {[%clk 0:00:07]}  Rb1+ {[%clk 0:00:53]} 39. Kh2 {[%clk 0:00:07]}  Rb2 {[%clk 0:00:51]} 40. Rxa7 {[%clk 0:00:00]}  Bd5 {[%clk 0:00:51]} 0-1


[Site "https://www.chess.com"]

[Event "Titled Tuesday Blitz June 20 Early 2023"]
[White "Fernandez Guillen, Ernesto J."]
[Black "Mekhane, Adam"]
[WhiteFideId "3512428"]
[BlackFideId "36050601"]
[WhiteElo "2434"]
[BlackElo "2177"]
[Result "1/2-1/2"]
[Round "5"]
[TimeControl "180+2"]
[Date "2023.06.20"]
[WhiteClock "0:00:21"]
[BlackClock "0:00:39"]
[Board "51"]

1. e4 {[%clk 0:03:00]}  c5 {[%clk 0:02:55]} 2. Nf3 {[%clk 0:02:59]}  Nc6 {[%clk 0:02:55]} 3. d4 {[%clk 0:02:58]}  cxd4 {[%clk 0:02:56]} 4. Nxd4 {[%clk 0:02:58]}  Nf6 {[%clk 0:02:56]} 5. Nc3 {[%clk 0:02:58]}  h5 {[%clk 0:02:56]} 6. Nb3 {[%clk 0:02:56]}  e5 {[%clk 0:02:54]} 7. f3 {[%clk 0:02:56]}  Bb4 {[%clk 0:02:55]} 8. Bd2 {[%clk 0:02:55]}  d5 {[%clk 0:02:55]} 9. Nxd5 {[%clk 0:02:54]}  Nxd5 {[%clk 0:02:55]} 10. exd5 {[%clk 0:02:55]}  Qxd5 {[%clk 0:02:55]} 11. c3 {[%clk 0:02:53]}  Be7 {[%clk 0:02:54]} 12. Be3 {[%clk 0:02:53]}  Be6 {[%clk 0:02:53]} 13. Qxd5 {[%clk 0:02:50]}  Bxd5 {[%clk 0:02:54]} 14. O-O-O {[%clk 0:02:49]}  O-O-O {[%clk 0:02:55]} 15. Bd3 {[%clk 0:02:49]}  g6 {[%clk 0:02:51]} 16. Rhe1 {[%clk 0:02:48]}  f5 {[%clk 0:02:50]} 17. Kb1 {[%clk 0:02:47]}  h4 {[%clk 0:02:49]} 18. h3 {[%clk 0:02:47]}  Rhe8 {[%clk 0:02:42]} 19. Bc2 {[%clk 0:02:45]}  Be6 {[%clk 0:02:32]} 20. Nc5 {[%clk 0:02:42]}  Bf7 {[%clk 0:02:17]} 21. Ba4 {[%clk 0:02:42]}  Rxd1+ {[%clk 0:02:08]} 22. Rxd1 {[%clk 0:02:43]}  Rd8 {[%clk 0:02:08]} 23. Rxd8+ {[%clk 0:02:43]}  Bxd8 {[%clk 0:02:09]} 24. Nd3 {[%clk 0:02:38]}  Bf6 {[%clk 0:02:04]} 25. Bxc6 {[%clk 0:02:36]}  bxc6 {[%clk 0:02:04]} 26. Bxa7 {[%clk 0:02:36]}  Bc4 {[%clk 0:01:58]} 27. Kc2 {[%clk 0:02:32]}  e4 {[%clk 0:01:58]} 28. fxe4 {[%clk 0:02:33]}  fxe4 {[%clk 0:01:59]} 29. Ne1 {[%clk 0:02:22]}  Kd7 {[%clk 0:01:53]} 30. b3 {[%clk 0:02:20]}  Bf1 {[%clk 0:01:53]} 31. Bf2 {[%clk 0:02:20]}  Ke6 {[%clk 0:01:53]} 32. Kd2 {[%clk 0:02:21]}  Kf5 {[%clk 0:01:46]} 33. a4 {[%clk 0:02:21]}  g5 {[%clk 0:01:46]} 34. Nc2 {[%clk 0:02:15]}  Kf4 {[%clk 0:01:42]} 35. Ne3 {[%clk 0:02:09]}  Ba6 {[%clk 0:01:42]} 36. b4 {[%clk 0:01:51]}  Bd8 {[%clk 0:01:35]} 37. c4 {[%clk 0:01:50]}  Bb6 {[%clk 0:01:28]} 38. b5 {[%clk 0:01:48]}  Bb7 {[%clk 0:01:22]} 39. Ke2 {[%clk 0:00:58]}  Bc5 {[%clk 0:01:01]} 40. a5 {[%clk 0:00:54]}  Bc8 {[%clk 0:00:34]} 41. a6 {[%clk 0:00:33]}  Bxe3 {[%clk 0:00:30]} 42. Bxe3+ {[%clk 0:00:32]}  Kg3 {[%clk 0:00:31]} 43. Bxg5 {[%clk 0:00:25]}  cxb5 {[%clk 0:00:31]} 44. cxb5 {[%clk 0:00:25]}  Bd7 {[%clk 0:00:30]} 45. b6 {[%clk 0:00:14]}  Bb5+ {[%clk 0:00:29]} 46. Ke3 {[%clk 0:00:12]}  Bxa6 {[%clk 0:00:30]} 47. Kxe4 {[%clk 0:00:10]}  Kxg2 {[%clk 0:00:30]} 48. Bxh4 {[%clk 0:00:10]}  Kxh3 {[%clk 0:00:30]} 49. Bf6 {[%clk 0:00:11]}  Bb7+ {[%clk 0:00:30]} 50. Ke5 {[%clk 0:00:12]}  Kg4 {[%clk 0:00:31]} 51. Kd6 {[%clk 0:00:12]}  Kf3 {[%clk 0:00:31]} 52. Ba1 {[%clk 0:00:12]}  Be4 {[%clk 0:00:32]} 53. Kc7 {[%clk 0:00:13]}  Ke2 {[%clk 0:00:32]} 54. Bh8 {[%clk 0:00:12]}  Kd3 {[%clk 0:00:32]} 55. Kd6 {[%clk 0:00:13]}  Kc4 {[%clk 0:00:32]} 56. Ke5 {[%clk 0:00:14]}  Bb7 {[%clk 0:00:32]} 57. Kd6 {[%clk 0:00:14]}  Kb5 {[%clk 0:00:33]} 58. Kc7 {[%clk 0:00:15]}  Ka6 {[%clk 0:00:33]} 59. Bc3 {[%clk 0:00:16]}  Be4 {[%clk 0:00:34]} 60. Be5 {[%clk 0:00:17]}  Bb7 {[%clk 0:00:35]} 61. Bd4 {[%clk 0:00:18]}  Be4 {[%clk 0:00:35]} 62. Bf6 {[%clk 0:00:18]}  Bb7 {[%clk 0:00:36]} 63. Be5 {[%clk 0:00:19]}  Be4 {[%clk 0:00:37]} 64. Bf6 {[%clk 0:00:20]}  Bb7 {[%clk 0:00:38]} 65. Be5 {[%clk 0:00:21]}  Bf3 {[%clk 0:00:39]} 66. Bf6 {[%clk 0:00:21]}  Bb7 {[%clk 0:00:39]} 1/2-1/2


[Site "https://www.chess.com"]

[Event "Titled Tuesday Blitz June 20 Early 2023"]
[White "Renjith, Sravan"]
[Black "Asavasaetakul, Chawit"]
[WhiteFideId "4306783"]
[BlackFideId "6204856"]
[WhiteElo "2104"]
[BlackElo "1919"]
[Result "1-0"]
[Round "5"]
[TimeControl "180+2"]
[Date "2023.06.20"]
[WhiteClock "0:00:15"]
[BlackClock "0:00:12"]
[Board "53"]

1. b3 {[%clk 0:03:00]}  d5 {[%clk 0:02:59]} 2. Bb2 {[%clk 0:03:00]}  c6 {[%clk 0:03:00]} 3. Nf3 {[%clk 0:03:00]}  Nf6 {[%clk 0:03:00]} 4. e3 {[%clk 0:03:01]}  Bf5 {[%clk 0:03:01]} 5. Be2 {[%clk 0:03:01]}  e6 {[%clk 0:03:01]} 6. O-O {[%clk 0:03:01]}  h6 {[%clk 0:03:02]} 7. c4 {[%clk 0:03:02]}  Be7 {[%clk 0:03:01]} 8. d3 {[%clk 0:03:02]}  O-O {[%clk 0:03:01]} 9. Nbd2 {[%clk 0:03:03]}  a5 {[%clk 0:03:00]} 10. Re1 {[%clk 0:03:03]}  Re8 {[%clk 0:03:00]} 11. Bf1 {[%clk 0:03:04]}  Bh7 {[%clk 0:03:00]} 12. e4 {[%clk 0:03:04]}  Na6 {[%clk 0:03:00]} 13. e5 {[%clk 0:03:04]}  Nd7 {[%clk 0:02:59]} 14. a3 {[%clk 0:02:51]}  Nac5 {[%clk 0:02:51]} 15. Re3 {[%clk 0:02:29]}  Nb6 {[%clk 0:02:34]} 16. d4 {[%clk 0:02:18]}  Ne4 {[%clk 0:02:25]} 17. Nxe4 {[%clk 0:02:17]}  Bxe4 {[%clk 0:02:25]} 18. Nd2 {[%clk 0:02:15]}  Bg6 {[%clk 0:02:24]} 19. c5 {[%clk 0:02:04]}  Nd7 {[%clk 0:02:24]} 20. b4 {[%clk 0:02:05]}  b6 {[%clk 0:02:24]} 21. b5 {[%clk 0:01:56]}  Qc7 {[%clk 0:02:13]} 22. bxc6 {[%clk 0:01:21]}  Qxc6 {[%clk 0:02:12]} 23. cxb6 {[%clk 0:01:21]}  Qxb6 {[%clk 0:02:08]} 24. Rb3 {[%clk 0:01:18]}  Qa7 {[%clk 0:02:08]} 25. Bb5 {[%clk 0:01:01]}  Rec8 {[%clk 0:02:07]} 26. a4 {[%clk 0:00:58]}  Bc2 {[%clk 0:02:05]} 27. Qf3 {[%clk 0:00:50]}  Bxb3 {[%clk 0:02:05]} 28. Qxb3 {[%clk 0:00:51]}  Nb6 {[%clk 0:02:05]} 29. f4 {[%clk 0:00:50]}  Rab8 {[%clk 0:02:04]} 30. Rf1 {[%clk 0:00:25]}  Bb4 {[%clk 0:02:03]} 31. Nb1 {[%clk 0:00:22]}  Nc4 {[%clk 0:02:00]} 32. Ba1 {[%clk 0:00:22]}  g6 {[%clk 0:01:52]} 33. h4 {[%clk 0:00:21]}  h5 {[%clk 0:01:52]} 34. g4 {[%clk 0:00:20]}  hxg4 {[%clk 0:01:52]} 35. Qg3 {[%clk 0:00:20]}  Nd2 {[%clk 0:01:37]} 36. Nxd2 {[%clk 0:00:19]}  Bxd2 {[%clk 0:01:38]} 37. h5 {[%clk 0:00:18]}  gxh5 {[%clk 0:01:35]} 38. Qh4 {[%clk 0:00:17]}  Be3+ {[%clk 0:01:30]} 39. Kh1 {[%clk 0:00:16]}  Rxb5 {[%clk 0:01:04]} 40. axb5 {[%clk 0:00:15]}  Bxd4 {[%clk 0:01:05]} 41. Qg5+ {[%clk 0:00:15]}  Kf8 {[%clk 0:01:04]} 42. Qh6+ {[%clk 0:00:15]}  Ke8 {[%clk 0:01:03]} 43. f5 {[%clk 0:00:15]}  exf5 {[%clk 0:00:42]} 44. e6 {[%clk 0:00:14]}  Ke7 {[%clk 0:00:28]} 45. Rxf5 {[%clk 0:00:13]}  Rc1+ {[%clk 0:00:23]} 46. Qxc1 {[%clk 0:00:11]}  Bxa1 {[%clk 0:00:22]} 47. Rxf7+ {[%clk 0:00:11]}  Kxe6 {[%clk 0:00:18]} 48. Rxa7 {[%clk 0:00:12]}  Bd4 {[%clk 0:00:11]} 49. Qc6+ {[%clk 0:00:12]}  Ke5 {[%clk 0:00:11]} 50. Re7+ {[%clk 0:00:12]}  Kf4 {[%clk 0:00:10]} 51. Qxd5 {[%clk 0:00:13]}  Be3 {[%clk 0:00:10]} 52. Qe4+ {[%clk 0:00:13]}  Kg3 {[%clk 0:00:10]} 53. Qxe3+ {[%clk 0:00:14]}  Kh4 {[%clk 0:00:11]} 54. Qf2+ {[%clk 0:00:14]}  g3 {[%clk 0:00:11]} 55. Qf4+ {[%clk 0:00:14]}  Kh3 {[%clk 0:00:12]} 56. Qf5+ {[%clk 0:00:14]}  Kh4 {[%clk 0:00:12]} 57. Re4# {[%clk 0:00:15]} 1-0


[Site "https://www.chess.com"]

[Event "Titled Tuesday Blitz June 20 Early 2023"]
[White "Seemann, Jakub"]
[Black "Kollars, Dmitrij"]
[WhiteFideId "21874697"]
[BlackFideId "12909572"]
[WhiteElo "2364"]
[BlackElo "2584"]
[Result "0-1"]
[Round "5"]
[TimeControl "180+2"]
[Date "2023.06.20"]
[WhiteClock "0:00:00"]
[BlackClock "0:00:09"]
[Board "61"]

1. c4 {[%clk 0:02:58]}  e5 {[%clk 0:02:58]} 2. Nc3 {[%clk 0:02:58]}  Bb4 {[%clk 0:02:58]} 3. Nd5 {[%clk 0:02:56]}  a5 {[%clk 0:02:57]} 4. Nf3 {[%clk 0:02:46]}  d6 {[%clk 0:02:55]} 5. a3 {[%clk 0:02:44]}  Bc5 {[%clk 0:02:55]} 6. e3 {[%clk 0:02:41]}  c6 {[%clk 0:02:43]} 7. Nc3 {[%clk 0:02:40]}  Qe7 {[%clk 0:02:42]} 8. d3 {[%clk 0:02:37]}  Nf6 {[%clk 0:02:38]} 9. Be2 {[%clk 0:02:37]}  O-O {[%clk 0:02:38]} 10. O-O {[%clk 0:02:37]}  Ba7 {[%clk 0:02:38]} 11. b4 {[%clk 0:02:32]}  Nbd7 {[%clk 0:02:34]} 12. Bb2 {[%clk 0:02:30]}  Re8 {[%clk 0:02:29]} 13. Qb3 {[%clk 0:02:17]}  Bb8 {[%clk 0:02:29]} 14. e4 {[%clk 0:02:08]}  Nf8 {[%clk 0:02:28]} 15. Rfe1 {[%clk 0:02:00]}  Bg4 {[%clk 0:02:28]} 16. Nd2 {[%clk 0:01:54]}  Ne6 {[%clk 0:02:20]} 17. h3 {[%clk 0:01:44]}  Bh5 {[%clk 0:02:16]} 18. Bxh5 {[%clk 0:01:38]}  Nxh5 {[%clk 0:02:17]} 19. Ne2 {[%clk 0:01:37]}  Nhf4 {[%clk 0:02:13]} 20. Nxf4 {[%clk 0:01:32]}  Nxf4 {[%clk 0:02:14]} 21. d4 {[%clk 0:01:28]}  Qg5 {[%clk 0:02:00]} 22. Qf3 {[%clk 0:01:01]}  Nxg2 {[%clk 0:02:00]} 23. Qxg2 {[%clk 0:00:59]}  Qxd2 {[%clk 0:02:00]} 24. f4 {[%clk 0:00:55]}  Qxg2+ {[%clk 0:01:55]} 25. Kxg2 {[%clk 0:00:55]}  exf4 {[%clk 0:01:56]} 26. Kf3 {[%clk 0:00:52]}  Bc7 {[%clk 0:01:53]} 27. d5 {[%clk 0:00:48]}  f6 {[%clk 0:01:35]} 28. Kxf4 {[%clk 0:00:46]}  Kf7 {[%clk 0:01:36]} 29. Kf3 {[%clk 0:00:45]}  cxd5 {[%clk 0:01:17]} 30. exd5 {[%clk 0:00:39]}  Rxe1 {[%clk 0:01:12]} 31. Rxe1 {[%clk 0:00:39]}  axb4 {[%clk 0:01:13]} 32. axb4 {[%clk 0:00:38]}  Ra4 {[%clk 0:01:13]} 33. Bc3 {[%clk 0:00:37]}  Ra3 {[%clk 0:01:11]} 34. Rc1 {[%clk 0:00:37]}  Bb6 {[%clk 0:01:01]} 35. Ke4 {[%clk 0:00:35]}  g6 {[%clk 0:00:54]} 36. Kd3 {[%clk 0:00:25]}  f5 {[%clk 0:00:25]} 37. Re1 {[%clk 0:00:25]}  Bd8 {[%clk 0:00:15]} 38. Re6 {[%clk 0:00:23]}  Be7 {[%clk 0:00:16]} 39. Kc2 {[%clk 0:00:15]}  f4 {[%clk 0:00:16]} 40. Re4 {[%clk 0:00:14]}  g5 {[%clk 0:00:15]} 41. Kb2 {[%clk 0:00:14]}  Ra8 {[%clk 0:00:15]} 42. Bd4 {[%clk 0:00:13]}  Rc8 {[%clk 0:00:14]} 43. Kb3 {[%clk 0:00:13]}  h5 {[%clk 0:00:13]} 44. Re1 {[%clk 0:00:10]}  Bf6 {[%clk 0:00:13]} 45. Bb6 {[%clk 0:00:07]}  g4 {[%clk 0:00:10]} 46. hxg4 {[%clk 0:00:08]}  hxg4 {[%clk 0:00:11]} 47. c5 {[%clk 0:00:09]}  dxc5 {[%clk 0:00:09]} 48. bxc5 {[%clk 0:00:09]}  g3 {[%clk 0:00:08]} 49. d6 {[%clk 0:00:09]}  f3 {[%clk 0:00:08]} 50. d7 {[%clk 0:00:10]}  Rg8 {[%clk 0:00:08]} 51. c6 {[%clk 0:00:06]}  bxc6 {[%clk 0:00:09]} 52. Re3 {[%clk 0:00:04]}  f2 {[%clk 0:00:08]} 53. Rf3 {[%clk 0:00:04]}  Ke6 {[%clk 0:00:08]} 54. d8=Q {[%clk 0:00:02]}  Bxd8 {[%clk 0:00:08]} 55. Bxf2 {[%clk 0:00:02]}  gxf2 {[%clk 0:00:08]} 56. Rxf2 {[%clk 0:00:02]}  Bf6 {[%clk 0:00:08]} 57. Kb4 {[%clk 0:00:03]}  Be7+ {[%clk 0:00:09]} 58. Kc4 {[%clk 0:00:00]}  Rg4+ {[%clk 0:00:09]} 0-1


[Site "https://www.chess.com"]

[Event "Titled Tuesday Blitz June 20 Early 2023"]
[White "Eljanov, Pavel"]
[Black "Gubajdullin, Alexei"]
[WhiteFideId "14102951"]
[BlackFideId "4141202"]
[WhiteElo "2598"]
[BlackElo "2279"]
[Result "1-0"]
[Round "5"]
[TimeControl "180+2"]
[Date "2023.06.20"]
[WhiteClock "0:00:16"]
[BlackClock "0:00:00"]
[Board "63"]

1. d4 {[%clk 0:03:00]}  Nf6 {[%clk 0:02:59]} 2. c4 {[%clk 0:03:01]}  g6 {[%clk 0:02:59]} 3. Nc3 {[%clk 0:03:01]}  Bg7 {[%clk 0:02:59]} 4. e4 {[%clk 0:03:01]}  d6 {[%clk 0:03:00]} 5. h3 {[%clk 0:03:01]}  O-O {[%clk 0:03:00]} 6. Be3 {[%clk 0:03:02]}  Na6 {[%clk 0:03:00]} 7. Nf3 {[%clk 0:02:59]}  e5 {[%clk 0:02:55]} 8. d5 {[%clk 0:03:00]}  Nc5 {[%clk 0:02:54]} 9. Nd2 {[%clk 0:03:00]}  a5 {[%clk 0:02:54]} 10. a3 {[%clk 0:03:00]}  Nh5 {[%clk 0:02:37]} 11. b4 {[%clk 0:03:00]}  axb4 {[%clk 0:02:37]} 12. axb4 {[%clk 0:03:00]}  Rxa1 {[%clk 0:02:37]} 13. Qxa1 {[%clk 0:03:01]}  Na6 {[%clk 0:02:37]} 14. c5 {[%clk 0:02:56]}  f5 {[%clk 0:02:26]} 15. c6 {[%clk 0:02:48]}  Nxb4 {[%clk 0:02:04]} 16. Qa4 {[%clk 0:02:42]}  bxc6 {[%clk 0:01:46]} 17. dxc6 {[%clk 0:02:17]}  d5 {[%clk 0:01:14]} 18. exd5 {[%clk 0:02:01]}  Qe7 {[%clk 0:00:59]} 19. Bc4 {[%clk 0:01:49]}  Kh8 {[%clk 0:00:58]} 20. Nb3 {[%clk 0:01:23]}  Nc2+ {[%clk 0:00:54]} 21. Kd2 {[%clk 0:01:17]}  Nxe3 {[%clk 0:00:52]} 22. fxe3 {[%clk 0:01:18]}  Qh4 {[%clk 0:00:52]} 23. Re1 {[%clk 0:01:12]}  f4 {[%clk 0:00:41]} 24. e4 {[%clk 0:01:12]}  f3 {[%clk 0:00:39]} 25. gxf3 {[%clk 0:01:12]}  Rxf3 {[%clk 0:00:38]} 26. Re2 {[%clk 0:01:04]}  Nf4 {[%clk 0:00:37]} 27. Qa8 {[%clk 0:00:58]}  Qd8 {[%clk 0:00:32]} 28. Ba6 {[%clk 0:00:37]}  Nxe2 {[%clk 0:00:30]} 29. Bxe2 {[%clk 0:00:32]}  Rf8 {[%clk 0:00:28]} 30. Kc2 {[%clk 0:00:30]}  Qd6 {[%clk 0:00:22]} 31. Qa5 {[%clk 0:00:26]}  Bxh3 {[%clk 0:00:21]} 32. Nb5 {[%clk 0:00:26]}  Qf6 {[%clk 0:00:18]} 33. Qxc7 {[%clk 0:00:25]}  Qf2 {[%clk 0:00:17]} 34. Nc3 {[%clk 0:00:25]}  Bg4 {[%clk 0:00:15]} 35. Nc1 {[%clk 0:00:25]}  Bxe2 {[%clk 0:00:13]} 36. N1xe2 {[%clk 0:00:25]}  h5 {[%clk 0:00:02]} 37. d6 {[%clk 0:00:20]}  h4 {[%clk 0:00:03]} 38. d7 {[%clk 0:00:20]}  Qf6 {[%clk 0:00:02]} 39. Qc8 {[%clk 0:00:19]}  h3 {[%clk 0:00:02]} 40. c7 {[%clk 0:00:19]}  h2 {[%clk 0:00:02]} 41. d8=Q {[%clk 0:00:17]}  Qf2 {[%clk 0:00:00]} 42. Qh3+ {[%clk 0:00:16]} 1-0


[Site "https://www.chess.com"]

[Event "Titled Tuesday Blitz June 20 Early 2023"]
[White "ATM622"]
[Black "Grandelius, Nils"]
[BlackFideId "1710400"]
[WhiteElo "2617"]
[BlackElo "2573"]
[Result "0-1"]
[Round "5"]
[TimeControl "180+2"]
[Date "2023.06.20"]
[WhiteClock "0:01:55"]
[BlackClock "0:02:22"]
[Board "64"]

1. d4 {[%clk 0:03:00]}  d5 {[%clk 0:02:59]} 2. c4 {[%clk 0:02:59]}  e6 {[%clk 0:02:59]} 3. Nf3 {[%clk 0:02:59]}  a6 {[%clk 0:03:00]} 4. g3 {[%clk 0:02:59]}  dxc4 {[%clk 0:03:00]} 5. Bg2 {[%clk 0:02:59]}  Nc6 {[%clk 0:03:01]} 6. O-O {[%clk 0:02:59]}  Rb8 {[%clk 0:03:01]} 7. a4 {[%clk 0:02:59]}  Nf6 {[%clk 0:02:57]} 8. Nc3 {[%clk 0:02:51]}  Bb4 {[%clk 0:02:58]} 9. Bg5 {[%clk 0:02:48]}  Be7 {[%clk 0:02:52]} 10. e4 {[%clk 0:02:45]}  O-O {[%clk 0:02:53]} 11. h3 {[%clk 0:02:40]}  b5 {[%clk 0:02:51]} 12. axb5 {[%clk 0:02:40]}  axb5 {[%clk 0:02:52]} 13. Bxf6 {[%clk 0:02:41]}  Bxf6 {[%clk 0:02:52]} 14. e5 {[%clk 0:02:41]}  Be7 {[%clk 0:02:52]} 15. Ne4 {[%clk 0:02:31]}  Bb7 {[%clk 0:02:48]} 16. h4 {[%clk 0:02:29]}  Nb4 {[%clk 0:02:47]} 17. Qb1 {[%clk 0:02:26]}  Nd3 {[%clk 0:02:40]} 18. Nfg5 {[%clk 0:02:21]}  h6 {[%clk 0:02:33]} 19. Nh3 {[%clk 0:02:16]}  Qxd4 {[%clk 0:02:31]} 20. Nc3 {[%clk 0:01:58]}  Bxg2 {[%clk 0:02:28]} 21. Kxg2 {[%clk 0:01:58]}  b4 {[%clk 0:02:23]} 22. Ne2 {[%clk 0:01:55]}  Qe4+ {[%clk 0:02:22]} 0-1


[Site "https://www.chess.com"]

[Event "Titled Tuesday Blitz June 20 Early 2023"]
[White "Bacrot, Etienne"]
[Black "Arat, Ufuk Sezen"]
[WhiteFideId "605506"]
[BlackFideId "6309089"]
[WhiteElo "2672"]
[BlackElo "2289"]
[Result "1-0"]
[Round "5"]
[TimeControl "180+2"]
[Date "2023.06.20"]
[WhiteClock "0:01:30"]
[BlackClock "0:00:30"]
[Board "66"]

1. e4 {[%clk 0:03:00]}  c5 {[%clk 0:02:59]} 2. Nf3 {[%clk 0:02:59]}  e6 {[%clk 0:02:59]} 3. c3 {[%clk 0:02:59]}  d5 {[%clk 0:02:59]} 4. exd5 {[%clk 0:02:59]}  Qxd5 {[%clk 0:03:00]} 5. d4 {[%clk 0:03:00]}  Nf6 {[%clk 0:03:00]} 6. Na3 {[%clk 0:02:53]}  Nc6 {[%clk 0:02:58]} 7. Nb5 {[%clk 0:02:51]}  Qd8 {[%clk 0:02:58]} 8. Bf4 {[%clk 0:02:51]}  Nd5 {[%clk 0:02:57]} 9. Bg3 {[%clk 0:02:40]}  a6 {[%clk 0:02:54]} 10. Na3 {[%clk 0:02:39]}  cxd4 {[%clk 0:02:53]} 11. Nxd4 {[%clk 0:02:39]}  Bxa3 {[%clk 0:02:50]} 12. Nxc6 {[%clk 0:02:34]}  bxc6 {[%clk 0:02:44]} 13. bxa3 {[%clk 0:02:34]}  Qa5 {[%clk 0:02:39]} 14. Qd2 {[%clk 0:02:29]}  Qxa3 {[%clk 0:02:04]} 15. c4 {[%clk 0:02:25]}  Nf6 {[%clk 0:01:55]} 16. Bd6 {[%clk 0:02:21]}  Qa4 {[%clk 0:01:55]} 17. Bd3 {[%clk 0:02:18]}  c5 {[%clk 0:01:43]} 18. Bc2 {[%clk 0:02:07]}  Qc6 {[%clk 0:01:40]} 19. O-O-O {[%clk 0:02:03]}  Bb7 {[%clk 0:01:32]} 20. Qa5 {[%clk 0:01:54]}  Qc8 {[%clk 0:00:49]} 21. Bxc5 {[%clk 0:01:42]}  Be4 {[%clk 0:00:30]} 22. Bxe4 {[%clk 0:01:30]} 1-0


[Site "https://www.chess.com"]